Workbook

Sheet Initial Process Study
A4: Initial Process Study - | F4: =IF((COUNTIFS(Data!$A:$A,$A$6))>1,"Opgelet! Nummer bestaat 2 keer!",(VLOOKUP($A$6,Data!$A$8:$BZ$1550,55,FALSE))) -> Residual thickness | AK4: =I8-0.5 -> 2.1
AK5: =I9+0.5 -> 3.9
A6: B0004RA | Y6: Sample | Z6: Thickness | AB6: LSL | AC6: USL | AD6: Mean | AE6: LCL | AF6: UCL | AH6: midden
Y7: 1 | Z7: =IF((COUNTIFS(Data!$A:$A,$A$6))>1,"Opgelet! Nummer bestaat 2 keer!",(VLOOKUP($A$6,Data!$A$8:$BZ$1550,2,FALSE))) -> 2.8 | AA7: =IF(Z7=0,"",IF(Z7>0,Z7)) -> 2.8 | AB7: =$I$8 -> 2.6 | AC7: =$I$9 -> 3.4 | AD7: =$I$10 -> 3 | AE7: =$U$10 -> 2.608671994 | AF7: =$U$11 -> 3.042528006 | AH7: klassen | AI7: norm.verd
A8: Lower Specification Limit (LSL) | I8: =IF((COUNTIFS(Data!$A:$A,$A$6))>1,"Opgelet! Nummer bestaat 2 keer!",(VLOOKUP($A$6,Data!$A$8:$BZ$1550,52,FALSE))) -> 2.6 | M8: Sample Mean (Centreline) | U8: =AVERAGE(AA7:AA56) -> 2.8256 | Y8: 2 | Z8: =IF((COUNTIFS(Data!$A:$A,$A$6))>1,"Opgelet! Nummer bestaat 2 keer!",(VLOOKUP($A$6,Data!$A$8:$BZ$1550,3,FALSE))) -> 2.8 | AA8: =IF(Z8=0,"",IF(Z8>0,Z8)) -> 2.8 | AB8: 2.6 | AC8: 3.4 | AD8: 3 | AE8: =$U$10 -> 2.608671994 | AF8: =$U$11 -> 3.042528006 | AI8: =NORMDIST(AH8,$U$8,$U$9,0)*$AI$20 -> 0
A9: Upper Specification Limit (USL) | I9: =IF((COUNTIFS(Data!$A:$A,$A$6))>1,"Opgelet! Nummer bestaat 2 keer!",(VLOOKUP($A$6,Data!$A$8:$BZ$1550,53,FALSE))) -> 3.4 | M9: Standard Deviation | U9: =STDEVP(AA7:AA56) -> 0.0723093355 | Y9: 3 | Z9: =IF((COUNTIFS(Data!$A:$A,$A$6))>1,"Opgelet! Nummer bestaat 2 keer!",(VLOOKUP($A$6,Data!$A$8:$BZ$1550,4,FALSE))) -> 2.8 | AA9: 2.8 | AB9: 2.6 | AC9: 3.4 | AD9: 3 | AE9: 2.608671994 | AF9: 3.042528006 | AH9: =C18+0.5*$AI$20 -> 2.542857143 | AI9: =NORMDIST(AH9,$U$8,$U$9,0)*$AI$20 -> 0.0003017347067
A10: Specification Mean | I10: =AVERAGE(I8:K9) -> 3 | M10: Lower Control Limit (LCL) | U10: =U8-(3*U9) -> 2.608671994 | Y10: 4 | Z10: =IF((COUNTIFS(Data!$A:$A,$A$6))>1,"Opgelet! Nummer bestaat 2 keer!",(VLOOKUP($A$6,Data!$A$8:$BZ$1550,5,FALSE))) -> 2.9 | AA10: 2.9 | AB10: 2.6 | AC10: 3.4 | AD10: 3 | AE10: 2.608671994 | AF10: 3.042528006 | AH10: 2.657142857 | AI10: =NORMDIST(AH10,$U$8,$U$9,0)*$AI$20 -> 0.04179914015
M11: Upper Control Limit (UCL) | U11: =U8+(3*U9) -> 3.042528006 | Y11: 5 | Z11: =IF((COUNTIFS(Data!$A:$A,$A$6))>1,"Opgelet! Nummer bestaat 2 keer!",(VLOOKUP($A$6,Data!$A$8:$BZ$1550,6,FALSE))) -> 2.8 | AA11: 2.8 | AB11: 2.6 | AC11: 3.4 | AD11: 3 | AE11: 2.608671994 | AF11: 3.042528006 | AH11: 2.771428571 | AI11: 0.4762500355
A12: Number of Samples | I12: =COUNT(AA7:AA56) -> 50 | Y12: 6 | Z12: =IF((COUNTIFS(Data!$A:$A,$A$6))>1,"Opgelet! Nummer bestaat 2 keer!",(VLOOKUP($A$6,Data!$A$8:$BZ$1550,7,FALSE))) -> 2.9 | AA12: 2.9 | AB12: 2.6 | AC12: 3.4 | AD12: 3 | AE12: 2.608671994 | AF12: 3.042528006 | AH12: 2.885714286 | AI12: 0.4463014383
A13: Minimum | I13: =MIN(AA7:AA56) -> 2.6 | M13: Cpl | U13: =(U8-I8)/(3*U9) -> 1.039976367 | Y13: 7 | Z13: =IF((COUNTIFS(Data!$A:$A,$A$6))>1,"Opgelet! Nummer bestaat 2 keer!",(VLOOKUP($A$6,Data!$A$8:$BZ$1550,8,FALSE))) -> 2.9 | AA13: 2.9 | AB13: 2.6 | AC13: 3.4 | AD13: 3 | AE13: 2.608671994 | AF13: 3.042528006 | AH13: 3.057142857 | AI13: 0.003742645303
A14: Maximum | I14: =MAX(AA7:AA56) -> 2.9 | M14: Cpu | U14: =(I9-U8)/(3*U9) -> 2.647883089 | Y14: 8 | Z14: =IF((COUNTIFS(Data!$A:$A,$A$6))>1,"Opgelet! Nummer bestaat 2 keer!",(VLOOKUP($A$6,Data!$A$8:$BZ$1550,9,FALSE))) -> 2.8 | AA14: 2.8 | AB14: 2.6 | AC14: 3.4 | AD14: 3 | AE14: 2.608671994 | AF14: 3.042528006 | AH14: 3.171428571 | AI14: 6.804338592e-06
A15: Range | I15: =MAX(AA7:AA56) - MIN(AA7:AA56) -> 0.3 | M15: Cpk | U15: =MIN(U13:W14) -> 1.039976367 | Y15: 9 | Z15: =IF((COUNTIFS(Data!$A:$A,$A$6))>1,"Opgelet! Nummer bestaat 2 keer!",(VLOOKUP($A$6,Data!$A$8:$AY$1550,10,FALSE))) -> 2.6 | AA15: 2.6 | AB15: 2.6 | AC15: 3.4 | AD15: 3 | AE15: 2.608671994 | AF15: 3.042528006 | AH15: 3.285714286 | AI15: 1.017463305e-09
Y16: 10 | Z16: =IF((COUNTIFS(Data!$A:$A,$A$6))>1,"Opgelet! Nummer bestaat 2 keer!",(VLOOKUP($A$6,Data!$A$8:$AY$1550,11,FALSE))) -> 2.8 | AA16: 2.8 | AB16: 2.6 | AC16: 3.4 | AD16: 3 | AE16: 2.608671994 | AF16: 3.042528006 | AH16: 3.457142857 | AI16: 1.719802194e-17
D17: Frequency | Y17: 11 | Z17: =IF((COUNTIFS(Data!$A:$A,$A$6))>1,"Opgelet! Nummer bestaat 2 keer!",(VLOOKUP($A$6,Data!$A$8:$AY$1550,12,FALSE))) -> 2.6 | AA17: 2.6 | AB17: 2.6 | AC17: 3.4 | AD17: 3 | AE17: 2.608671994 | AF17: 3.042528006 | AH17: 3.571428571 | AI17: 4.98913572e-24
A18: 0 | B18: - | C18: =A19 -> 2.485714286 | D18: =FREQUENCY(AA7:AA56,C18:C27) -> 0 | E18: =D18/$I$12 -> 0 | Y18: 12 | Z18: =IF((COUNTIFS(Data!$A:$A,$A$6))>1,"Opgelet! Nummer bestaat 2 keer!",(VLOOKUP($A$6,Data!$A$8:$AY$1550,13,FALSE))) -> 2.8 | AA18: 2.8 | AB18: 2.6 | AC18: 3.4 | AD18: 3 | AE18: 2.608671994 | AF18: 3.042528006
A19: =C19-AJ20 -> 2.485714286 | B19: - | C19: =A20 -> 2.6 | D19: 2 | E19: 0.04 | Y19: 13 | Z19: =IF((COUNTIFS(Data!$A:$A,$A$6))>1,"Opgelet! Nummer bestaat 2 keer!",(VLOOKUP($A$6,Data!$A$8:$AY$1550,14,FALSE))) -> 2.8 | AA19: 2.8 | AB19: 2.6 | AC19: 3.4 | AD19: 3 | AE19: 2.608671994 | AF19: 3.042528006
A20: =I8 -> 2.6 | B20: - | C20: =A20+AJ20 -> 2.714285714 | D20: 2 | E20: 0.04 | Y20: 14 | Z20: =IF((COUNTIFS(Data!$A:$A,$A$6))>1,"Opgelet! Nummer bestaat 2 keer!",(VLOOKUP($A$6,Data!$A$8:$AY$1550,15,FALSE))) -> 2.8 | AA20: 2.8 | AB20: 2.6 | AC20: 3.4 | AD20: 3 | AE20: 2.608671994 | AF20: 3.042528006 | AH20: klassenbreedte: | AI20: =AJ20 -> 0.1142857143 | AJ20: =(I9-I8)/7 -> 0.1142857143
A21: =C20 -> 2.714285714 | B21: - | C21: =A21+AJ20 -> 2.828571429 | D21: 27 | E21: 0.54 | Y21: 15 | Z21: =IF((COUNTIFS(Data!$A:$A,$A$6))>1,"Opgelet! Nummer bestaat 2 keer!",(VLOOKUP($A$6,Data!$A$8:$AY$1550,16,FALSE))) -> 2.8 | AA21: 2.8 | AB21: 2.6 | AC21: 3.4 | AD21: 3 | AE21: 2.608671994 | AF21: 3.042528006 | AH21: beginwaarde: | AI21: =I8-(2*AI20) -> 2.371428571
A22: =C21+AJ20 -> 2.942857143 | B22: - | C22: =A23 -> 3 | D22: 19 | E22: 0.38 | Y22: 16 | Z22: =IF((COUNTIFS(Data!$A:$A,$A$6))>1,"Opgelet! Nummer bestaat 2 keer!",(VLOOKUP($A$6,Data!$A$8:$AY$1550,17,FALSE))) -> 2.8 | AA22: 2.8 | AB22: 2.6 | AC22: 3.4 | AD22: 3 | AE22: 2.608671994 | AF22: 3.042528006
A23: =I10 -> 3 | B23: - | C23: =A23+AJ20 -> 3.114285714 | D23: 0 | E23: 0 | Y23: 17 | Z23: =IF((COUNTIFS(Data!$A:$A,$A$6))>1,"Opgelet! Nummer bestaat 2 keer!",(VLOOKUP($A$6,Data!$A$8:$AY$1550,18,FALSE))) -> 2.8 | AA23: 2.8 | AB23: 2.6 | AC23: 3.4 | AD23: 3 | AE23: 2.608671994 | AF23: 3.042528006
A24: =C23 -> 3.114285714 | B24: - | C24: =A24+AJ20 -> 3.228571429 | D24: 0 | E24: 0 | Y24: 18 | Z24: =IF((COUNTIFS(Data!$A:$A,$A$6))>1,"Opgelet! Nummer bestaat 2 keer!",(VLOOKUP($A$6,Data!$A$8:$AY$1550,19,FALSE))) -> 2.8 | AA24: 2.8 | AB24: 2.6 | AC24: 3.4 | AD24: 3 | AE24: 2.608671994 | AF24: 3.042528006
A25: =C24 -> 3.228571429 | B25: - | C25: =I9 -> 3.4 | D25: 0 | E25: 0 | Y25: 19 | Z25: =IF((COUNTIFS(Data!$A:$A,$A$6))>1,"Opgelet! Nummer bestaat 2 keer!",(VLOOKUP($A$6,Data!$A$8:$AY$1550,20,FALSE))) -> 2.8 | AA25: 2.8 | AB25: 2.6 | AC25: 3.4 | AD25: 3 | AE25: 2.608671994 | AF25: 3.042528006
A26: =C25 -> 3.4 | B26: - | C26: =A26+AJ20 -> 3.514285714 | D26: 0 | E26: 0 | Y26: 20 | Z26: =IF((COUNTIFS(Data!$A:$A,$A$6))>1,"Opgelet! Nummer bestaat 2 keer!",(VLOOKUP($A$6,Data!$A$8:$AY$1550,21,FALSE))) -> 2.8 | AA26: 2.8 | AB26: 2.6 | AC26: 3.4 | AD26: 3 | AE26: 2.608671994 | AF26: 3.042528006
A27: =C26 -> 3.514285714 | B27: - | C27: ∞ | D27: 0 | E27: 0 | Y27: 21 | Z27: =IF((COUNTIFS(Data!$A:$A,$A$6))>1,"Opgelet! Nummer bestaat 2 keer!",(VLOOKUP($A$6,Data!$A$8:$AY$1550,22,FALSE))) -> 2.9 | AA27: 2.9 | AB27: 2.6 | AC27: 3.4 | AD27: 3 | AE27: 2.608671994 | AF27: 3.042528006
Y28: 22 | Z28: =IF((COUNTIFS(Data!$A:$A,$A$6))>1,"Opgelet! Nummer bestaat 2 keer!",(VLOOKUP($A$6,Data!$A$8:$AY$1550,23,FALSE))) -> 2.9 | AA28: 2.9 | AB28: 2.6 | AC28: 3.4 | AD28: 3 | AE28: 2.608671994 | AF28: 3.042528006 | AI28: =$U$8-(3*$U$9) -> 2.608671994 | AJ28: =$U$8-(2*$U$9) -> 2.680981329 | AK28: =FREQUENCY($AA$7:$AA$56,$AJ$28:$AJ$30) -> 2 | AL28: =AK28/$AK$32 -> 0.04
Y29: 23 | Z29: =IF((COUNTIFS(Data!$A:$A,$A$6))>1,"Opgelet! Nummer bestaat 2 keer!",(VLOOKUP($A$6,Data!$A$8:$AY$1550,24,FALSE))) -> 2.9 | AA29: 2.9 | AB29: 2.6 | AC29: 3.4 | AD29: 3 | AE29: 2.608671994 | AF29: 3.042528006 | AI29: =$U$8-$U$9 -> 2.753290665 | AJ29: =$U$8+$U$9 -> 2.897909335 | AK29: 29 | AL29: =AK29/$AK$32 -> 0.58
Y30: 24 | Z30: =IF((COUNTIFS(Data!$A:$A,$A$6))>1,"Opgelet! Nummer bestaat 2 keer!",(VLOOKUP($A$6,Data!$A$8:$AY$1550,25,FALSE))) -> 2.8 | AA30: 2.8 | AB30: 2.6 | AC30: 3.4 | AD30: 3 | AE30: 2.608671994 | AF30: 3.042528006 | AI30: =$U$8+(2*$U$9) -> 2.970218671 | AJ30: =$U$8+(3*$U$9) -> 3.042528006 | AK30: 19 | AL30: =AK30/$AK$32 -> 0.38
Y31: 25 | Z31: =IF((COUNTIFS(Data!$A:$A,$A$6))>1,"Opgelet! Nummer bestaat 2 keer!",(VLOOKUP($A$6,Data!$A$8:$AY$1550,26,FALSE))) -> 2.8 | AA31: 2.8 | AB31: 2.6 | AC31: 3.4 | AD31: 3 | AE31: 2.608671994 | AF31: 3.042528006
Y32: 26 | Z32: =IF((COUNTIFS(Data!$A:$A,$A$6))>1,"Opgelet! Nummer bestaat 2 keer!",(VLOOKUP($A$6,Data!$A$8:$AY$1550,27,FALSE))) -> 2.9 | AA32: 2.9 | AB32: 2.6 | AC32: 3.4 | AD32: 3 | AE32: 2.608671994 | AF32: 3.042528006 | AK32: =SUM(AK28:AK31) -> 50
Y33: 27 | Z33: =IF((COUNTIFS(Data!$A:$A,$A$6))>1,"Opgelet! Nummer bestaat 2 keer!",(VLOOKUP($A$6,Data!$A$8:$AY$1550,28,FALSE))) -> 2.8 | AA33: 2.8 | AB33: 2.6 | AC33: 3.4 | AD33: 3 | AE33: 2.608671994 | AF33: 3.042528006
Y34: 28 | Z34: =IF((COUNTIFS(Data!$A:$A,$A$6))>1,"Opgelet! Nummer bestaat 2 keer!",(VLOOKUP($A$6,Data!$A$8:$AY$1550,29,FALSE))) -> 2.69 | AA34: 2.69 | AB34: 2.6 | AC34: 3.4 | AD34: 3 | AE34: 2.608671994 | AF34: 3.042528006
Y35: 29 | Z35: =IF((COUNTIFS(Data!$A:$A,$A$6))>1,"Opgelet! Nummer bestaat 2 keer!",(VLOOKUP($A$6,Data!$A$8:$AY$1550,30,FALSE))) -> 2.8 | AA35: 2.8 | AB35: 2.6 | AC35: 3.4 | AD35: 3 | AE35: 2.608671994 | AF35: 3.042528006
Y36: 30 | Z36: =IF((COUNTIFS(Data!$A:$A,$A$6))>1,"Opgelet! Nummer bestaat 2 keer!",(VLOOKUP($A$6,Data!$A$8:$AY$1550,31,FALSE))) -> 2.8 | AA36: 2.8 | AB36: 2.6 | AC36: 3.4 | AD36: 3 | AE36: 2.608671994 | AF36: 3.042528006 | AI36: =$U$8-(3*$U$9) -> 2.608671994 | AJ36: =$U$8+(3*$U$9) -> 3.042528006 | AK36: =FREQUENCY($AA$7:$AA$56,AJ36) -> 50 | AL36: =AK36/$AK$32 -> 1
Y37: 31 | Z37: =IF((COUNTIFS(Data!$A:$A,$A$6))>1,"Opgelet! Nummer bestaat 2 keer!",(VLOOKUP($A$6,Data!$A$8:$AY$1550,32,FALSE))) -> 2.8 | AA37: 2.8 | AB37: 2.6 | AC37: 3.4 | AD37: 3 | AE37: 2.608671994 | AF37: 3.042528006 | AI37: =$U$8-(2*$U$9) -> 2.680981329 | AJ37: =$U$8+(2*$U$9) -> 2.970218671 | AK37: =FREQUENCY($AA$7:$AA$56,AJ37) -> 50 | AL37: =AK37/$AK$32 -> 1
Y38: 32 | Z38: =IF((COUNTIFS(Data!$A:$A,$A$6))>1,"Opgelet! Nummer bestaat 2 keer!",(VLOOKUP($A$6,Data!$A$8:$AY$1550,33,FALSE))) -> 2.69 | AA38: 2.69 | AB38: 2.6 | AC38: 3.4 | AD38: 3 | AE38: 2.608671994 | AF38: 3.042528006 | AI38: =$U$8-$U$9 -> 2.753290665 | AJ38: =$U$8+$U$9 -> 2.897909335 | AK38: =FREQUENCY($AA$7:$AA$56,AJ38) -> 31 | AL38: =AK38/$AK$32 -> 0.62
Y39: 33 | Z39: =IF((COUNTIFS(Data!$A:$A,$A$6))>1,"Opgelet! Nummer bestaat 2 keer!",(VLOOKUP($A$6,Data!$A$8:$AY$1550,34,FALSE))) -> 2.9 | AA39: 2.9 | AB39: =$I$8 -> 2.6 | AC39: =$I$9 -> 3.4 | AD39: =$I$10 -> 3 | AE39: 2.608671994 | AF39: 3.042528006
Y40: 34 | Z40: =IF((COUNTIFS(Data!$A:$A,$A$6))>1,"Opgelet! Nummer bestaat 2 keer!",(VLOOKUP($A$6,Data!$A$8:$AY$1550,35,FALSE))) -> 2.9 | AA40: 2.9 | AB40: 2.6 | AC40: 3.4 | AD40: 3 | AE40: 2.608671994 | AF40: 3.042528006
A41: Remarks | Y41: 35 | Z41: =IF((COUNTIFS(Data!$A:$A,$A$6))>1,"Opgelet! Nummer bestaat 2 keer!",(VLOOKUP($A$6,Data!$A$8:$AY$1550,36,FALSE))) -> 2.8 | AA41: 2.8 | AB41: 2.6 | AC41: 3.4 | AD41: 3 | AE41: 2.608671994 | AF41: 3.042528006
A42: =IF((COUNTIFS(Data!$A:$A,$A$6))>1,"Opgelet! Nummer bestaat 2 keer!",(VLOOKUP($A$6,Data!$A$8:$BZ$1550,56,FALSE))) -> The measurements in this study are taken from one single production run and therefore do not represent the normal process variation. Cpk will be reassessed after 30 significant production runs | Y42: 36 | Z42: =IF((COUNTIFS(Data!$A:$A,$A$6))>1,"Opgelet! Nummer bestaat 2 keer!",(VLOOKUP($A$6,Data!$A$8:$AY$1550,37,FALSE))) -> 2.9 | AA42: 2.9 | AB42: 2.6 | AC42: 3.4 | AD42: 3 | AE42: 2.608671994 | AF42: 3.042528006
A43: =IF((COUNTIFS(Data!$A:$A,$A$6))>1,"Opgelet! Nummer bestaat 2 keer!",(VLOOKUP($A$6,Data!$A$8:$BZ$1550,57,FALSE))) -> 0 | Y43: 37 | Z43: =IF((COUNTIFS(Data!$A:$A,$A$6))>1,"Opgelet! Nummer bestaat 2 keer!",(VLOOKUP($A$6,Data!$A$8:$AY$1550,38,FALSE))) -> 2.9 | AA43: 2.9 | AB43: 2.6 | AC43: 3.4 | AD43: 3 | AE43: 2.608671994 | AF43: 3.042528006
A44: =IF((COUNTIFS(Data!$A:$A,$A$6))>1,"Opgelet! Nummer bestaat 2 keer!",(VLOOKUP($A$6,Data!$A$8:$BZ$1550,58,FALSE))) -> 0 | Y44: 38 | Z44: =IF((COUNTIFS(Data!$A:$A,$A$6))>1,"Opgelet! Nummer bestaat 2 keer!",(VLOOKUP($A$6,Data!$A$8:$AY$1550,39,FALSE))) -> 2.8 | AA44: 2.8 | AB44: 2.6 | AC44: 3.4 | AD44: 3 | AE44: 2.608671994 | AF44: 3.042528006
Y45: 39 | Z45: =IF((COUNTIFS(Data!$A:$A,$A$6))>1,"Opgelet! Nummer bestaat 2 keer!",(VLOOKUP($A$6,Data!$A$8:$AY$1550,40,FALSE))) -> 2.8 | AA45: 2.8 | AB45: 2.6 | AC45: 3.4 | AD45: 3 | AE45: 2.608671994 | AF45: 3.042528006
Y46: 40 | Z46: =IF((COUNTIFS(Data!$A:$A,$A$6))>1,"Opgelet! Nummer bestaat 2 keer!",(VLOOKUP($A$6,Data!$A$8:$AY$1550,41,FALSE))) -> 2.9 | AA46: 2.9 | AB46: 2.6 | AC46: 3.4 | AD46: 3 | AE46: 2.608671994 | AF46: 3.042528006
Y47: 41 | Z47: =IF((COUNTIFS(Data!$A:$A,$A$6))>1,"Opgelet! Nummer bestaat 2 keer!",(VLOOKUP($A$6,Data!$A$8:$AY$1550,42,FALSE))) -> 2.9 | AA47: 2.9 | AB47: 2.6 | AC47: 3.4 | AD47: 3 | AE47: 2.608671994 | AF47: 3.042528006
Y48: 42 | Z48: =IF((COUNTIFS(Data!$A:$A,$A$6))>1,"Opgelet! Nummer bestaat 2 keer!",(VLOOKUP($A$6,Data!$A$8:$BZ$1550,43,FALSE))) -> 2.9 | AA48: 2.9 | AB48: 2.6 | AC48: 3.4 | AD48: 3 | AE48: 2.608671994 | AF48: 3.042528006
Y49: 43 | Z49: =IF((COUNTIFS(Data!$A:$A,$A$6))>1,"Opgelet! Nummer bestaat 2 keer!",(VLOOKUP($A$6,Data!$A$8:$BZ$1550,44,FALSE))) -> 2.8 | AA49: 2.8 | AB49: 2.6 | AC49: 3.4 | AD49: 3 | AE49: 2.608671994 | AF49: 3.042528006
Y50: 44 | Z50: =IF((COUNTIFS(Data!$A:$A,$A$6))>1,"Opgelet! Nummer bestaat 2 keer!",(VLOOKUP($A$6,Data!$A$8:$BZ$1550,45,FALSE))) -> 2.9 | AA50: 2.9 | AB50: 2.6 | AC50: 3.4 | AD50: 3 | AE50: 2.608671994 | AF50: 3.042528006
Y51: 45 | Z51: =IF((COUNTIFS(Data!$A:$A,$A$6))>1,"Opgelet! Nummer bestaat 2 keer!",(VLOOKUP($A$6,Data!$A$8:$BZ$1550,46,FALSE))) -> 2.9 | AA51: 2.9 | AB51: 2.6 | AC51: 3.4 | AD51: 3 | AE51: 2.608671994 | AF51: 3.042528006
Y52: 46 | Z52: =IF((COUNTIFS(Data!$A:$A,$A$6))>1,"Opgelet! Nummer bestaat 2 keer!",(VLOOKUP($A$6,Data!$A$8:$BZ$1550,47,FALSE))) -> 2.9 | AA52: 2.9 | AB52: 2.6 | AC52: 3.4 | AD52: 3 | AE52: 2.608671994 | AF52: 3.042528006
Y53: 47 | Z53: =IF((COUNTIFS(Data!$A:$A,$A$6))>1,"Opgelet! Nummer bestaat 2 keer!",(VLOOKUP($A$6,Data!$A$8:$BZ$1550,48,FALSE))) -> 2.9 | AA53: 2.9 | AB53: 2.6 | AC53: 3.4 | AD53: 3 | AE53: 2.608671994 | AF53: 3.042528006
Y54: 48 | Z54: =IF((COUNTIFS(Data!$A:$A,$A$6))>1,"Opgelet! Nummer bestaat 2 keer!",(VLOOKUP($A$6,Data!$A$8:$BZ$1550,49,FALSE))) -> 2.9 | AA54: 2.9 | AB54: 2.6 | AC54: 3.4 | AD54: 3 | AE54: 2.608671994 | AF54: 3.042528006
Y55: 49 | Z55: =IF((COUNTIFS(Data!$A:$A,$A$6))>1,"Opgelet! Nummer bestaat 2 keer!",(VLOOKUP($A$6,Data!$A$8:$BZ$1550,50,FALSE))) -> 2.8 | AA55: 2.8 | AB55: 2.6 | AC55: 3.4 | AD55: 3 | AE55: 2.608671994 | AF55: 3.042528006
Y56: 50 | Z56: =IF((COUNTIFS(Data!$A:$A,$A$6))>1,"Opgelet! Nummer bestaat 2 keer!",(VLOOKUP($A$6,Data!$A$8:$BZ$1550,51,FALSE))) -> 2.8 | AA56: 2.8 | AB56: 2.6 | AC56: 3.4 | AD56: 3 | AE56: 2.608671994 | AF56: 3.042528006

Sheet Data
A4: Initial Process Study
A6: B-nummer | B6: Measurements | AZ6: LSL | BA6: USL | BB6: Interval | BC6: Parameter | BD6: Remark 1 | BE6: Remark 2 | BF6: Remark 3
B7: 1 | C7: 2 | D7: 3 | E7: 4 | F7: 5 | G7: 6 | H7: 7 | I7: 8 | J7: 9 | K7: 10 | L7: 11 | M7: 12 | N7: 13 | O7: 14 | P7: 15 | Q7: 16 | R7: 17 | S7: 18 | T7: 19 | U7: 20 | V7: 21 | W7: 22 | X7: 23 | Y7: 24 | Z7: 25 | AA7: 26 | AB7: 27 | AC7: 28 | AD7: 29 | AE7: 30 | AF7: 31 | AG7: 32 | AH7: 33 | AI7: 34 | AJ7: 35 | AK7: 36 | AL7: 37 | AM7: 38 | AN7: 39 | AO7: 40 | AP7: 41 | AQ7: 42 | AR7: 43 | AS7: 44 | AT7: 45 | AU7: 46 | AV7: 47 | AW7: 48 | AX7: 49 | AY7: 50
A8: B0004RA | B8: 2.8 | C8: 2.8 | D8: 2.8 | E8: 2.9 | F8: 2.8 | G8: 2.9 | H8: 2.9 | I8: 2.8 | J8: 2.6 | K8: 2.8 | L8: 2.6 | M8: 2.8 | N8: 2.8 | O8: 2.8 | P8: 2.8 | Q8: 2.8 | R8: 2.8 | S8: 2.8 | T8: 2.8 | U8: 2.8 | V8: 2.9 | W8: 2.9 | X8: 2.9 | Y8: 2.8 | Z8: 2.8 | AA8: 2.9 | AB8: 2.8 | AC8: 2.69 | AD8: 2.8 | AE8: 2.8 | AF8: 2.8 | AG8: 2.69 | AH8: 2.9 | AI8: 2.9 | AJ8: 2.8 | AK8: 2.9 | AL8: 2.9 | AM8: 2.8 | AN8: 2.8 | AO8: 2.9 | AP8: 2.9 | AQ8: 2.9 | AR8: 2.8 | AS8: 2.9 | AT8: 2.9 | AU8: 2.9 | AV8: 2.9 | AW8: 2.9 | AX8: 2.8 | AY8: 2.8 | AZ8: 2.6 | BA8: 3.4 | BB8: 0.1 | BC8: Residual thickness | BD8: The measurements in this study are taken from one single production run and therefore do not represent the normal process variation. Cpk will be reassessed after 30 significant production runs
A9: B0003RA | B9: 24.8 | C9: 24.5 | D9: 24.9 | E9: 24.75 | F9: 24.71 | G9: 24.85 | H9: 24.8 | I9: 24.5 | J9: 24.9 | K9: 24.75 | L9: 24.71 | M9: 24.85 | N9: 24.8 | O9: 24.5 | P9: 24.9 | Q9: 24.75 | R9: 24.71 | S9: 24.85 | T9: 24.8 | U9: 24.5 | V9: 24.9 | W9: 24.75 | X9: 24.71 | Y9: 24.85 | Z9: 24.8 | AA9: 24.5 | AB9: 24.9 | AC9: 24.75 | AD9: 24.71 | AE9: 24.85 | AF9: 24.8 | AG9: 24.5 | AH9: 24.9 | AI9: 24.75 | AJ9: 24.71 | AK9: 24.85 | AL9: 24.8 | AM9: 24.5 | AN9: 24.9 | AO9: 24.75 | AP9: 24.71 | AQ9: 24.85 | AR9: 24.8 | AS9: 24.5 | AT9: 24.8 | AU9: 24.5 | AV9: 24.9 | AW9: 24.75 | AX9: 24.71 | AY9: 24.85 | AZ9: 23.3 | BA9: 26 | BB9: 0.1 | BC9: Residual thickness | BD9: The measurements in this study are taken from one single production run and therefore do not represent the normal process variation. Cpk will be reassessed after 30 significant production runs
